[Event "44th Chess Olympiad Open 2022"]
[Site "Chennai"]
[Date "2022.08.03"]
[Round "6.73"]
[White "Mlawa, Hemed"]
[Black "Traore, Bakary"]
[Result "1/2-1/2"]
[WhiteElo "1896"]
[BlackElo "2181"]
[Annotator "TA"]
[PlyCount "164"]
[EventDate "2022.??.??"]
[TimeControl "60"]

{[%evp 17,164,43,38,23,118,113,130,95,152,156,156,153,143,145,162,72,68,52,58,
16,59,33,34,42,44,35,36,-11,8,8,8,10,14,16,16,0,0,-7,12,9,10,0,0,-9,0,0,0,0,0,
0,0,0,0,0,0,0,0,0,0,0,0,-15,0,0,0,0,0,-20,-29,-29,-19,-84,-6,-8,-8,-8,-8,-85,
-77,-85,-85,-369,-368,-360,-233,-233,-233,-254,-164,-233,-84,-233,-84,-84,-84,
-84,0,-84,-84,-84,0,-84,-84,-84,-84,-84,-84,-84,-84,-84,-84,-84,0,-84,-84,-85,
-84,-84,-84,-84,-84,-84,-84,-84,0,0,0,-84,0,-84,-84,-84,0,-4,0,-84,0,-84,0,-84,
0,-84,0,-84,-84,-84,0,-84,29986]} 1. d4 {[%emt 0:00:09]} Nf6 {[%emt 0:00:19]}
2. c4 {[%emt 0:00:08]} g6 {[%emt 0:00:29]} 3. Nc3 {[%emt 0:00:08]} Bg7 {
[%emt 0:00:08]} 4. e4 {[%emt 0:00:05]} d6 {[%emt 0:00:17]} 5. f3 {[%emt 0:00:
00]} O-O {[%emt 0:00:53]} 6. Be3 {[%emt 0:00:07]} e5 {[%emt 0:01:49]} 7. d5 {
[%emt 0:00:10]} c6 {[%emt 0:00:52]} 8. Qd2 {[%emt 0:00:13]} cxd5 {[%emt 0:00:
00]} 9. cxd5 {[%emt 0:00:07]} Na6 {[%emt 0:01:09]} 10. O-O-O {[%emt 0:00:50]
E88: King's Indian: Sämisch: 6...e5 7 d5 c6.} Nh5 {[%emt 0:02:20]} (10... Nc5
$11 {remains equal.}) 11. g4 $16 {[%emt 0:04:31]} Nf4 {[%emt 0:01:13] [#]} 12.
h4 $146 {[%emt 0:00:46] White is better.} ({Predecessor:} 12. Nge2 g5 13. h4 b5
14. hxg5 b4 15. Nb5 Bd7 16. Nxf4 Qa5 17. Kb1 exf4 18. Bd4 Bxb5 19. Qh2 f6 20.
Qxh7+ Kf7 21. gxf6 Rg8 22. Qh5+ {1-0 (22) Nokka,R-Loisa,A Jyvaskyla 1987})
12... h6 {[%emt 0:00:46]} (12... Nc5 $142) 13. Nge2 {[%emt 0:00:53]} (13. Bxf4
$6 exf4 14. Nge2 (14. Qxf4 b5 $11) 14... Bd7 $14) 13... Nxe2+ {[%emt 0:01:08]}
14. Bxe2 {[%emt 0:00:28]} Kh7 {[%emt 0:00:07]} 15. Kb1 {[%emt 0:24:42] White
is more active.} Bd7 {[%emt 0:02:46]} 16. f4 {[%emt 0:07:54]} (16. Bb5 $18)
16... exf4 {[%emt 0:00:30]} 17. Bxf4 {[%emt 0:00:09]} Qe7 {[%emt 0:00:30]} 18.
Bf3 {[%emt 0:09:38]} Nc5 {[%emt 0:01:08]} 19. Qh2 {[%emt 0:02:42]} Be5 {
[%emt 0:06:48]} 20. Bxe5 {[%emt 0:01:05]} Qxe5 {[%emt 0:00:55]} 21. Qxe5 {
[%emt 0:00:33]} dxe5 {[%emt 0:00:21]} 22. Be2 {[%emt 0:16:00] Against b5} (22.
b4 $14 {is more appropriate.} Na4 23. Nxa4 Bxa4 24. Rc1) 22... f5 {[%emt 0:00:
00]} 23. gxf5 {[%emt 0:04:03]} gxf5 {[%emt 0:00:02]} 24. exf5 {[%emt 0:00:28]}
Bxf5+ {[%emt 0:00:47]} 25. Ka1 {[%emt 0:00:07]} Ne4 {[%emt 0:02:07]} 26. Nxe4 {
[%emt 0:00:46]} Bxe4 {[%emt 0:00:02]} 27. Bd3 {[%emt 0:00:02]} Rf4 {[%emt 0:00:
00]} 28. Bxe4+ {[%emt 0:05:54]} Rxe4 $11 {[%emt 0:00:03] Endgame KRR-KRR} 29.
d6 {[%emt 0:00:21]} Rd8 {[%emt 0:00:51]} 30. Rd5 {[%emt 0:00:20]} (30. d7 Rd4
$15) 30... Rd4 {[%emt 0:01:51]} (30... Kg6 {looks sharper.} 31. d7 Kf5 32. Rd6
Rd4) 31. Rxe5 {[%emt 0:04:28]} R8xd6 {[%emt 0:00:22] ( -> ...Rd1+)} 32. Kb1 {
[%emt 0:03:14]} Kg6 {[%emt 0:00:58]} 33. h5+ {[%emt 0:05:06]} Kf6 {[%emt 0:01:
07]} 34. Ree1 {[%emt 0:00:46]} R6d5 {[%emt 0:03:02]} 35. Reg1 {[%emt 0:00:52]}
Rg5 {[%emt 0:00:45] Against Rg6+} 36. Rf1+ {[%emt 0:00:27]} Ke6 {[%emt 0:01:53]
} 37. Rf8 {[%emt 0:00:17]} Rdd5 {[%emt 0:02:46]} 38. Re1+ {[%emt 0:03:55]} Rde5
{[%emt 0:01:10]} 39. Re8+ {[%emt 0:00:53]} Kf6 {[%emt 0:00:00] White must now
prevent ...Rxe1+.} 40. Rf1+ {[%emt 0:00:36]} Rgf5 {[%emt 0:01:38]} 41. Rf8+ {
[%emt 0:16:42]} Ke6 {[%emt 0:01:33]} 42. R8xf5 {[%emt 0:00:23]} Rxf5 {[%emt 0:
00:09] KR-KR} 43. Rh1 {[%emt 0:00:40]} Kf6 {[%emt 0:00:38]} 44. a4 {[%emt 0:01:
58]} (44. b4 $11) 44... a5 {[%emt 0:00:23]} (44... Kg5 $1 $17) 45. Rh3 {
[%emt 0:01:36]} b5 {[%emt 0:00:21]} 46. axb5 {[%emt 0:01:26]} Rxb5 {[%emt 0:00:
13] With the idea ...Kg5.} 47. Kc2 {[%emt 0:00:00]} (47. Ka2 $11) 47... Kg5 $17
{[%emt 0:00:06]} 48. b3 {[%emt 0:03:31]} Kg4 {[%emt 0:00:44][%csl Yh3,Yh5]} 49.
Rh1 {[%emt 0:00:58]} (49. Rd3 $17) 49... Rxh5 $19 {[%emt 0:00:35]} 50. Ra1 {
[%emt 0:00:43]} Rc5+ {[%emt 0:00:17]} 51. Kd3 {[%emt 0:01:07]} h5 {[%emt 0:00:
12]} 52. Ke2 {[%emt 0:00:00]} Kg3 {[%emt 0:01:25] ...Re5+ is the strong threat.
} 53. Rg1+ {[%emt 0:00:00]} (53. Ra3 $142 Kg2 54. Ke3) 53... Kf4 {[%emt 0:01:
08]} (53... Kh2 $19 54. Ra1 Kg2) 54. Ra1 {[%emt 0:00:54]} (54. Rf1+ $17 Kg3 55.
Rg1+ Kh2 56. Ra1) 54... Rb5 {[%emt 0:00:26]} (54... h4 $19 {and Black stays
clearly on top. Threatens to win with ...Rb5.} 55. Ra3 Rf5) 55. Kf2 $17 {
[%emt 0:00:23]} Ke4 {[%emt 0:00:09]} (55... Rxb3 $6 56. Rxa5 Kg4 57. Ra1 $11)
56. Ke2 {[%emt 0:00:00]} Kf4 {[%emt 0:00:15] Hoping for ...h4.} (56... Rxb3 $6
57. Rxa5 Rh3 58. Ra4+ Ke5 59. Kf2 $11) 57. Kf2 $1 {[%emt 0:00:09]} Kf5 {
[%emt 0:01:27]} (57... Rxb3 $6 58. Rxa5 Kg4 59. Kg2 $11) 58. Ra4 {[%emt 0:00:
21]} Kg5 {[%emt 0:01:27]} (58... Rxb3 $6 59. Rxa5+ Kg4 60. Kg2 $11) (58... Kf6
$17) 59. Kg2 {[%emt 0:00:00]} (59. Kf1 $11) 59... Kf6 {[%emt 0:00:31]} 60. Kf2
{[%emt 0:01:03]} Kf5 {[%emt 0:00:05]} 61. Rh4 {[%emt 0:00:45]} Ke6 $1 {[%emt 0:
00:08]} (61... Rxb3 $6 62. Rxh5+ Kg4 63. Rxa5 $11) 62. Ke2 {[%emt 0:00:27]} Kd6
$1 {[%emt 0:00:58]} (62... Rxb3 $6 63. Rxh5 Rg3 64. Rxa5 $11) 63. Kd2 {[%emt 0:
00:19]} Kc6 {[%emt 0:00:00]} (63... Rxb3 $6 64. Rxh5 Rg3 65. Rxa5 $11) 64. Kc2
{[%emt 0:04:02]} Kd6 {[%emt 0:00:30]} 65. Kd2 {[%emt 0:00:12]} Rd5+ {[%emt 0:
01:27]} (65... Rxb3 $6 66. Rxh5 a4 67. Ra5 $11) 66. Kc3 {[%emt 0:01:26]} Rc5+ {
[%emt 0:00:36]} 67. Kd2 {[%emt 0:00:54]} Rb5 {[%emt 0:00:15] Against b4} 68.
Kc2 {[%emt 0:01:16]} Ke6 {[%emt 0:00:06] Strongly threatening ...Kf6.} 69. Kd2
{[%emt 0:00:09]} Kf6 {[%emt 0:01:38] And now ...Kg5 would win.} (69... Rxb3 $6
70. Rxh5 Rg3 71. Rxa5 $11) 70. Ke2 {[%emt 0:00:20]} Kg6 {[%emt 0:01:02]} (70...
Rxb3 $6 71. Rxh5 Ke6 72. Rxa5 $11) (70... Ke7 $17) 71. Ra4 $11 {[%emt 0:00:45]}
Kf5 {[%emt 0:00:40]} (71... Kf7 $11) 72. Kf2 $1 $17 Kg5 {[%emt 0:01:40]} (72...
Rxb3 $6 73. Rxa5+ Kg4 74. Kg2 $11) ({Black should play} 72... Ke6 $17) 73. Kg2
{[%emt 0:00:30] [#]} (73. Rc4 $11 {keeps the balance.}) 73... Kg6 $1 {[%emt 0:
00:06]} 74. Kf2 {[%emt 0:00:26] [#]} Kf5 {[%emt 0:00:07]} (74... Kf6 $1 $17)
75. Rh4 $1 $11 {[%emt 0:00:14]} Ke6 {[%emt 0:00:16]} ({Black should try} 75...
Kg5 $11 76. Ra4 Kf6) 76. Ke2 $1 $17 {[%emt 0:00:12]} Rd5 {[%emt 0:00:13]} (
76... Rxb3 $6 77. Rxh5 Kd6 78. Rxa5 $11) (76... Kf6 $17) 77. Ra4 {[%emt 0:00:
19]} (77. b4 $1 $11) 77... Rb5 {[%emt 0:00:32]} 78. Rh4 $1 {[%emt 0:00:09]} Kd6
{[%emt 0:00:06]} ({Reject} 78... Rxb3 $6 79. Rxh5 a4 80. Ra5 $11) 79. Kd2 {
[%emt 0:00:05]} Kc6 {[%emt 0:01:35]} ({Of course not} 79... Rxb3 $6 80. Rxh5
Rf3 81. Rxa5 $11) (79... Rf5 $17) 80. Kc3 {[%emt 0:01:35]} (80. Kc2 $1 $11)
80... Kd7 {[%emt 0:00:00]} 81. Kd2 {[%emt 0:00:12]} Ke6 {[%emt 0:03:46]} 82.
Ke2 $1 {[%emt 0:01:00]} Ke5 $2 {[%emt 0:05:44] What a bad dream for Black.
Weighted Error Value: White=0.27 (precise) /Black=0.26 (precise) . An
unexpected result.} ({Don't play} 82... Rxb3 $6 83. Rxh5 Rg3 84. Rxa5 $11) (
82... Kf6 $17) 1/2-1/2

[Event "44th Chess Olympiad Open 2022"]
[Site "Chennai"]
[Date "2022.08.03"]
[Round "6.73"]
[White "Mdoe, Yusuf"]
[Black "Maiga, Baba Moulaye Abdall"]
[Result "1-0"]
[WhiteElo "1722"]
[BlackElo "1822"]
[Annotator "NA RC"]
[PlyCount "125"]
[EventDate "2022.??.??"]
[TimeControl "60"]

1. c4 {[%emt 0:00:15]} e5 {[%emt 0:00:00]} 2. Nc3 {[%emt 0:00:26]} Nf6 {
[%emt 0:00:07]} 3. g3 {[%emt 0:00:52]} Bb4 {[%emt 0:00:38]} 4. Bg2 {[%emt 0:00:
00]} c6 {[%emt 0:01:07]} 5. Qc2 {[%emt 0:00:47]} d6 {[%emt 0:00:51]} 6. a3 {
[%emt 0:00:49]} Ba5 {[%emt 0:01:42]} 7. Nf3 {[%emt 0:02:07]} g6 {[%emt 0:02:15]
} 8. b4 {[%emt 0:01:39]} Bb6 {[%emt 0:00:00]} 9. Bb2 {[%emt 0:05:44]} Ng4 {
[%emt 0:02:02]} 10. O-O {[%emt 0:01:07]} O-O {[%emt 0:00:56]} 11. h3 {[%emt 0:
00:00]} Nf6 {[%emt 0:00:23]} 12. e4 {[%emt 0:04:23]} Nh5 {[%emt 0:00:34]} 13.
c5 {[%emt 0:02:10]} Bc7 {[%emt 0:00:59]} 14. cxd6 {[%emt 0:02:38]} Qxd6 {
[%emt 0:00:34]} 15. Ne2 {[%emt 0:01:47]} Qe7 {[%emt 0:00:41]} 16. d4 {[%emt 0:
00:00]} f6 {[%emt 0:02:58]} 17. d5 {[%emt 0:01:52]} Bb6 {[%emt 0:08:58]} 18.
Qc4 {[%emt 0:01:20]} Kh8 {[%emt 0:02:06]} 19. Rad1 {[%emt 0:00:12]} cxd5 {
[%emt 0:01:25]} 20. exd5 {[%emt 0:00:41]} Qd6 {[%emt 0:00:18]} 21. Rfe1 {
[%emt 0:06:51]} Nd7 {[%emt 0:06:48]} 22. Nd2 {[%emt 0:02:19]} f5 {[%emt 0:00:
00]} 23. Nb3 {[%emt 0:03:25]} Kg8 {[%emt 0:02:38]} 24. Rc1 {[%emt 0:02:24]} Bd8
{[%emt 0:04:24]} 25. Nc3 {[%emt 0:06:44]} a6 {[%emt 0:04:46]} 26. Nc5 {[%emt 0:
00:00]} Nb6 {[%emt 0:01:42]} 27. Qb3 {[%emt 0:01:53]} Bf6 {[%emt 0:02:09]} 28.
N3a4 {[%emt 0:01:16]} Nxa4 {[%emt 0:01:34]} 29. Qxa4 {[%emt 0:01:44]} b5 {
[%emt 0:01:20]} 30. Qb3 {[%emt 0:02:00]} Ra7 {[%emt 0:00:35]} 31. Re2 {[%emt 0:
00:00]} Re8 {[%emt 0:02:07]} 32. Nd3 {[%emt 0:06:54]} Bd7 {[%emt 0:06:19]} 33.
Nc5 {[%emt 0:02:43]} Rc7 {[%emt 0:03:45]} 34. Rd1 {[%emt 0:01:48]} Bc8 {
[%emt 0:05:26]} 35. Ne6 {[%emt 0:02:06]} Rce7 {[%emt 0:05:21]} 36. Rc2 {
[%emt 0:06:41]} Bb7 {[%emt 0:09:55]} 37. g4 {[%emt 0:01:03]} fxg4 {[%emt 0:00:
00]} 38. hxg4 {[%emt 0:01:08]} Rxe6 {[%emt 0:06:11]} 39. gxh5 {[%emt 0:06:20]}
R6e7 {[%emt 0:03:23]} 40. Rc6 {[%emt 0:00:32]} Qd7 {[%emt 0:04:21]} 41. Rxf6 {
[%emt 0:30:36]} Kg7 {[%emt 0:31:35]} 42. Rf3 {[%emt 0:04:13]} Rd8 {[%emt 0:00:
00]} 43. Rg3 {[%emt 0:00:00]} Qf5 {[%emt 0:00:00]} 44. hxg6 {[%emt 0:00:00]}
hxg6 {[%emt 0:00:00]} 45. Qe3 {[%emt 0:00:00]} Rf8 {[%emt 0:00:00]} 46. Be4 {
[%emt 0:00:00]} Qh5 {[%emt 0:00:00]} 47. Rxg6+ {[%emt 0:00:00]} Kf7 {[%emt 0:
00:00]} 48. Rd3 {[%emt 0:00:00]} Ke8 {[%emt 0:00:00]} 49. Rg5 {[%emt 0:00:00]}
Qh4 {[%emt 0:00:00]} 50. Bxe5 {[%emt 0:00:00]} Kd7 {[%emt 0:00:00]} 51. Bg2 {
[%emt 0:00:00]} Ke8 {[%emt 0:00:00]} 52. Rd4 {[%emt 0:00:00]} Qh7 {[%emt 0:00:
00]} 53. Qg3 {[%emt 0:00:00]} Qb1+ {[%emt 0:01:05]} 54. Kh2 {[%emt 0:00:00]}
Rh7+ {[%emt 0:01:03]} 55. Rh4 {[%emt 0:00:00]} Rff7 {[%emt 0:01:53]} 56. Bd4 {
[%emt 0:00:00]} Rxh4+ {[%emt 0:01:23]} 57. Qxh4 {[%emt 0:00:00]} Rh7 {[%emt 0:
00:00]} 58. Rh5 {[%emt 0:00:00]} Rxh5 {[%emt 0:00:16]} 59. Qxh5+ {[%emt 0:00:
00]} Kd8 {[%emt 0:00:23]} 60. Bf6+ {[%emt 0:00:00]} Kc7 {[%emt 0:00:18]} 61.
Qf7+ {[%emt 0:00:00]} Kb8 {[%emt 0:00:19]} 62. Qf8+ {[%emt 0:00:00]} Bc8 {
[%emt 0:00:40]} 63. Be5+ {[%emt 0:00:00]} 1-0

[Event "44th Chess Olympiad Open 2022"]
[Site "Chennai"]
[Date "2022.08.03"]
[Round "6.73"]
[White "Diarra, Sirike"]
[Black "Njau, Albert"]
[Result "1-0"]
[WhiteElo "1641"]
[BlackElo "1842"]
[Annotator "NA RC"]
[PlyCount "57"]
[EventDate "2022.??.??"]
[TimeControl "60"]

1. e4 {[%emt 0:00:05]} e5 {[%emt 0:00:09]} 2. f4 {[%emt 0:00:29]} Nf6 {[%emt 0:
00:00]} 3. Nc3 {[%emt 0:00:22]} d5 {[%emt 0:01:47]} 4. fxe5 {[%emt 0:02:51]}
Nxe4 {[%emt 0:00:23]} 5. Nf3 {[%emt 0:00:07]} Bc5 {[%emt 0:04:50]} 6. d4 {
[%emt 0:00:15]} Bb4 {[%emt 0:00:19]} 7. Bd2 {[%emt 0:00:04]} Nxd2 {[%emt 0:00:
00]} 8. Qxd2 {[%emt 0:00:24]} Bf5 {[%emt 0:02:21]} 9. Bd3 {[%emt 0:00:30]} Qd7
{[%emt 0:02:18]} 10. O-O {[%emt 0:00:16]} O-O {[%emt 0:00:16]} 11. a3 {[%emt 0:
00:00]} Bxd3 {[%emt 0:01:40]} 12. Qxd3 {[%emt 0:00:36]} Be7 {[%emt 0:00:44]}
13. Rae1 {[%emt 0:00:39]} Nc6 {[%emt 0:00:26]} 14. Ne2 {[%emt 0:03:40]} Rae8 {
[%emt 0:05:24]} 15. Ng3 {[%emt 0:00:05]} g6 {[%emt 0:00:35]} 16. Qd2 {[%emt 0:
00:00]} Kg7 {[%emt 0:00:12]} 17. h3 {[%emt 0:00:56]} Nd8 {[%emt 0:04:33]} 18.
Nh2 {[%emt 0:01:37]} Ne6 {[%emt 0:05:20]} 19. Ng4 {[%emt 0:04:33]} Bg5 {
[%emt 0:01:35]} 20. Qf2 {[%emt 0:00:08]} Rc8 {[%emt 0:07:02]} 21. Nf6 {[%emt 0:
00:00]} Qd8 {[%emt 0:00:09]} 22. h4 {[%emt 0:03:55]} Bh6 {[%emt 0:03:35]} 23.
Nf5+ {[%emt 0:00:29]} Kh8 {[%emt 0:05:35]} 24. Nxh6 {[%emt 0:00:21]} c5 {
[%emt 0:00:39]} 25. c3 {[%emt 0:00:39]} cxd4 {[%emt 0:00:16]} 26. cxd4 {
[%emt 0:00:03]} Rc4 {[%emt 0:00:29]} 27. Rd1 {[%emt 0:00:35]} b5 {[%emt 0:00:
00]} 28. Rd2 {[%emt 0:00:33]} Kg7 {[%emt 0:04:32]} 29. Qe3 {[%emt 0:00:52]} 1-0

[Event "44th Chess Olympiad Open 2022"]
[Site "Chennai"]
[Date "2022.08.03"]
[Round "6.74"]
[White "Mohamed Abderrahim, Taleb Mohamed"]
[Black "Adeshole Beckley, Brian"]
[Result "1/2-1/2"]
[WhiteElo "2084"]
[BlackElo "1590"]
[Annotator "NA RC"]
[PlyCount "102"]
[EventDate "2022.??.??"]
[TimeControl "60"]

1. e4 {[%emt 0:00:04]} e6 {[%emt 0:00:04]} 2. d4 {[%emt 0:00:41]} d5 {[%emt 0:
00:00]} 3. Nd2 {[%emt 0:00:27]} Nf6 {[%emt 0:00:13]} 4. Bd3 {[%emt 0:00:22]} c5
{[%emt 0:00:22]} 5. dxc5 {[%emt 0:00:24]} Bxc5 {[%emt 0:01:16]} 6. Qe2 {
[%emt 0:01:07]} O-O {[%emt 0:05:07]} 7. Ngf3 {[%emt 0:01:43]} dxe4 {[%emt 0:00:
00]} 8. Nxe4 {[%emt 0:00:15]} Nxe4 {[%emt 0:00:15]} 9. Qxe4 {[%emt 0:02:29]} f5
{[%emt 0:00:59]} 10. Qe2 {[%emt 0:01:26]} Nc6 {[%emt 0:03:54]} 11. O-O {
[%emt 0:03:24]} Nd4 {[%emt 0:01:04]} 12. Nxd4 {[%emt 0:02:07]} Bxd4 {[%emt 0:
00:00]} 13. c3 {[%emt 0:05:27]} Bf6 {[%emt 0:00:32]} 14. Bc4 {[%emt 0:04:35]}
Kh8 {[%emt 0:00:52]} 15. Bf4 {[%emt 0:07:25]} Qe7 {[%emt 0:03:36]} 16. Rad1 {
[%emt 0:06:28]} e5 {[%emt 0:00:18]} 17. Rfe1 {[%emt 0:01:46]} Qc7 {[%emt 0:00:
00]} 18. Bb3 {[%emt 0:14:59]} exf4 {[%emt 0:05:11]} 19. Qe8 {[%emt 0:00:35]}
Bd7 {[%emt 0:00:21]} 20. Qxd7 {[%emt 0:02:22]} Qxd7 {[%emt 0:01:25]} 21. Rxd7 {
[%emt 0:00:14]} Rfe8 {[%emt 0:03:41]} 22. Rxe8+ {[%emt 0:02:12]} Rxe8 {[%emt 0:
00:00]} 23. Kf1 {[%emt 0:00:10]} h6 {[%emt 0:02:39]} 24. Rxb7 {[%emt 0:01:45]}
Re7 {[%emt 0:00:08]} 25. Rb8+ {[%emt 0:04:33]} Kh7 {[%emt 0:00:12]} 26. Bg8+ {
[%emt 0:01:35]} Kg6 {[%emt 0:00:26]} 27. c4 {[%emt 0:01:21]} f3 {[%emt 0:03:16]
} 28. gxf3 {[%emt 0:08:09]} Be5 {[%emt 0:00:12]} 29. Rb5 {[%emt 0:02:11]} Bxh2
{[%emt 0:00:55]} 30. b4 {[%emt 0:03:00]} h5 {[%emt 0:01:43]} 31. Kg2 {[%emt 0:
00:00]} Bf4 {[%emt 0:00:40]} 32. c5 {[%emt 0:02:42]} Kf6 {[%emt 0:00:28]} 33.
c6 {[%emt 0:07:17]} g5 {[%emt 0:00:17]} 34. Rb7 {[%emt 0:02:34]} Rxb7 {[%emt 0:
00:00]} 35. cxb7 {[%emt 0:00:02]} Bd6 {[%emt 0:00:59]} 36. a4 {[%emt 0:03:08]}
Ke5 {[%emt 0:03:15]} 37. Bf7 {[%emt 0:01:59]} h4 {[%emt 0:00:23]} 38. Kh3 {
[%emt 0:02:12]} Kf4 {[%emt 0:01:43]} 39. Bd5 {[%emt 0:01:45]} Ke5 {[%emt 0:00:
00]} 40. Bc6 {[%emt 0:01:27]} Kd4 {[%emt 0:00:18]} 41. Bd7 {[%emt 0:30:17]} Ke5
{[%emt 0:31:00]} 42. b5 {[%emt 0:02:39]} Kf4 {[%emt 0:00:25]} 43. Bc6 {[%emt 0:
00:00]} Ke5 {[%emt 0:00:00]} 44. a5 {[%emt 0:00:00]} Bb8 {[%emt 0:00:00]} 45.
a6 {[%emt 0:00:00]} Kf4 {[%emt 0:00:00]} 46. Bd5 {[%emt 0:00:00]} Ke5 {[%emt 0:
00:00]} 47. Bc6 {[%emt 0:00:00]} Kf4 {[%emt 0:00:00]} 48. Bd5 {[%emt 0:00:00]}
Ke5 {[%emt 0:00:00]} 49. Bc6 {[%emt 0:00:00]} Kf4 {[%emt 0:00:00]} 50. Bd5 {
[%emt 0:00:00]} Ke5 {[%emt 0:00:00]} 51. Bc6 {[%emt 0:00:00]} Kf4 {[%emt 0:00:
00]} 1/2-1/2

[Event "44th Chess Olympiad Open 2022"]
[Site "Chennai"]
[Date "2022.08.03"]
[Round "6.74"]
[White "Cheikhna, Mohamed Lemine"]
[Black "Winston Gerald, Mansfield Thomas"]
[Result "0-1"]
[WhiteElo "1899"]
[BlackElo "1832"]
[Annotator "NA RC"]
[PlyCount "84"]
[EventDate "2022.??.??"]
[TimeControl "60"]

1. e4 {[%emt 0:00:06]} d6 {[%emt 0:00:08]} 2. d4 {[%emt 0:00:23]} Nf6 {[%emt 0:
00:00]} 3. Nc3 {[%emt 0:00:05]} c6 {[%emt 0:00:25]} 4. f4 {[%emt 0:00:10]} Qa5
{[%emt 0:00:19]} 5. Bd3 {[%emt 0:00:49]} Nbd7 {[%emt 0:00:25]} 6. Nf3 {[%emt 0:
00:00]} e5 {[%emt 0:00:20]} 7. O-O {[%emt 0:05:54]} Be7 {[%emt 0:03:04]} 8. Bd2
{[%emt 0:01:06]} Qc7 {[%emt 0:00:34]} 9. Ne2 {[%emt 0:04:13]} exd4 {[%emt 0:00:
00]} 10. Nexd4 {[%emt 0:01:16]} Nc5 {[%emt 0:00:19]} 11. e5 {[%emt 0:00:57]}
dxe5 {[%emt 0:02:34]} 12. fxe5 {[%emt 0:00:12]} Nd5 {[%emt 0:01:03]} 13. Qe2 {
[%emt 0:02:08]} Nxd3 {[%emt 0:01:04]} 14. Qxd3 {[%emt 0:01:18]} O-O {[%emt 0:
00:00]} 15. Rae1 {[%emt 0:07:47]} Qb6 {[%emt 0:02:19]} 16. Kh1 {[%emt 0:03:23]}
Qxb2 {[%emt 0:00:58]} 17. e6 {[%emt 0:05:46]} fxe6 {[%emt 0:01:28]} 18. Nxe6 {
[%emt 0:00:47]} Bxe6 {[%emt 0:01:48]} 19. Rxe6 {[%emt 0:00:13]} Bf6 {[%emt 0:
00:00]} 20. c4 {[%emt 0:06:41]} Nc7 {[%emt 0:01:28]} 21. Re2 {[%emt 0:01:30]}
Rad8 {[%emt 0:03:03]} 22. Qf5 {[%emt 0:04:24]} Bc3 {[%emt 0:04:19]} 23. Qg4 {
[%emt 0:03:46]} Bxd2 {[%emt 0:04:18]} 24. Nxd2 {[%emt 0:00:11]} Qxd2 {[%emt 0:
00:00]} 25. Rfe1 {[%emt 0:03:05]} Qf4 {[%emt 0:00:18]} 26. Qxf4 {[%emt 0:01:28]
} Rxf4 {[%emt 0:00:15]} 27. g3 {[%emt 0:00:04]} Rf7 {[%emt 0:00:30]} 28. Kg2 {
[%emt 0:00:28]} h6 {[%emt 0:00:51]} 29. h3 {[%emt 0:00:37]} Na6 {[%emt 0:00:28]
} 30. h4 {[%emt 0:01:05]} Nc5 {[%emt 0:00:31]} 31. Kh2 {[%emt 0:02:25]} Rdf8 {
[%emt 0:00:34]} 32. Kg2 {[%emt 0:00:21]} a5 {[%emt 0:01:20]} 33. Rd1 {[%emt 0:
00:00]} a4 {[%emt 0:00:46]} 34. Re5 {[%emt 0:01:30]} Rf2+ {[%emt 0:01:06]} 35.
Kh3 {[%emt 0:00:00]} b6 {[%emt 0:01:38]} 36. Kg4 {[%emt 0:00:00]} Rc2 {[%emt 0:
00:00]} 37. Rd4 {[%emt 0:00:53]} Rxa2 {[%emt 0:00:32]} 38. Rd6 {[%emt 0:00:20]}
Rc2 {[%emt 0:03:09]} 39. Rxc6 {[%emt 0:04:52]} Rxc4+ {[%emt 0:00:21]} 40. Kh5 {
[%emt 0:00:14]} a3 {[%emt 0:00:58]} 41. Re7 {[%emt 0:35:28]} a2 {[%emt 0:32:01]
} 42. Rcc7 {[%emt 0:04:20]} a1=Q {[%emt 0:01:04]} 0-1

[Event "44th Chess Olympiad Open 2022"]
[Site "Chennai"]
[Date "2022.08.03"]
[Round "6.74"]
[White "Lwebuga, Ronald"]
[Black "Boidiya, Sidi"]
[Result "0-1"]
[WhiteElo "1818"]
[BlackElo "1997"]
[Annotator "NA RC"]
[PlyCount "94"]
[EventDate "2022.??.??"]
[TimeControl "60"]

1. Nf3 {[%emt 0:00:05]} d5 {[%emt 0:00:04]} 2. d4 {[%emt 0:00:06]} Nf6 {
[%emt 0:00:03]} 3. c4 {[%emt 0:00:18]} c6 {[%emt 0:00:04]} 4. cxd5 {[%emt 0:00:
00]} cxd5 {[%emt 0:00:04]} 5. Nc3 {[%emt 0:00:05]} e6 {[%emt 0:00:05]} 6. g3 {
[%emt 0:00:22]} Be7 {[%emt 0:00:09]} 7. Bg2 {[%emt 0:00:07]} O-O {[%emt 0:00:
00]} 8. O-O {[%emt 0:00:04]} a6 {[%emt 0:00:29]} 9. a3 {[%emt 0:00:35]} Nc6 {
[%emt 0:00:32]} 10. Re1 {[%emt 0:00:18]} Bd7 {[%emt 0:00:17]} 11. Bg5 {[%emt 0:
00:00]} Qb6 {[%emt 0:03:45]} 12. Na4 {[%emt 0:02:57]} Qb5 {[%emt 0:00:50]} 13.
b3 {[%emt 0:04:55]} Na5 {[%emt 0:01:04]} 14. Nc5 {[%emt 0:08:21]} Bxc5 {
[%emt 0:00:55]} 15. dxc5 {[%emt 0:00:53]} Qxb3 {[%emt 0:00:26]} 16. Bxf6 {
[%emt 0:07:55]} Qxd1 {[%emt 0:00:36]} 17. Rexd1 {[%emt 0:03:08]} gxf6 {[%emt 0:
00:00]} 18. e4 {[%emt 0:01:45]} Ba4 {[%emt 0:06:17]} 19. exd5 {[%emt 0:04:45]}
Bxd1 {[%emt 0:00:28]} 20. Rxd1 {[%emt 0:00:07]} exd5 {[%emt 0:00:06]} 21. Rxd5
{[%emt 0:03:28]} Rad8 {[%emt 0:00:40]} 22. Rf5 {[%emt 0:00:33]} Rd1+ {[%emt 0:
00:00]} 23. Bf1 {[%emt 0:00:02]} Kg7 {[%emt 0:00:10]} 24. Kg2 {[%emt 0:00:18]}
Rfd8 {[%emt 0:00:21]} 25. a4 {[%emt 0:01:47]} Nb3 {[%emt 0:03:12]} 26. c6 {
[%emt 0:04:50]} bxc6 {[%emt 0:01:03]} 27. Bxa6 {[%emt 0:00:10]} Ra1 {[%emt 0:
00:00]} 28. Bb7 {[%emt 0:05:49]} c5 {[%emt 0:00:43]} 29. Rf4 {[%emt 0:18:02]}
Nd4 {[%emt 0:00:39]} 30. Rg4+ {[%emt 0:02:31]} Kf8 {[%emt 0:01:10]} 31. Nd2 {
[%emt 0:04:06]} Rxa4 {[%emt 0:02:06]} 32. Nb3 {[%emt 0:01:25]} Rb4 {[%emt 0:00:
00]} 33. Nxd4 {[%emt 0:10:18]} Rdxd4 {[%emt 0:00:07]} 34. Rxd4 {[%emt 0:01:21]}
Rxd4 {[%emt 0:00:07]} 35. Kf3 {[%emt 0:00:21]} c4 {[%emt 0:00:11]} 36. Ke3 {
[%emt 0:00:07]} Rd6 {[%emt 0:00:11]} 37. Be4 {[%emt 0:00:23]} h6 {[%emt 0:00:
00]} 38. f4 {[%emt 0:00:54]} c3 {[%emt 0:00:11]} 39. Bd3 {[%emt 0:00:32]} Ke7 {
[%emt 0:00:03]} 40. g4 {[%emt 0:00:54]} Kd7 {[%emt 0:00:55]} 41. h4 {[%emt 0:
00:00]} Kc6 {[%emt 0:30:04]} 42. g5 {[%emt 0:00:25]} fxg5 {[%emt 0:00:05]} 43.
fxg5 {[%emt 0:01:02]} hxg5 {[%emt 0:00:05]} 44. h5 {[%emt 0:01:10]} Kc5 {
[%emt 0:00:23]} 45. Bc2 {[%emt 0:00:40]} Kc4 {[%emt 0:00:17]} 46. Ke4 {[%emt 0:
00:00]} Rd2 {[%emt 0:00:06]} 47. Bb1 {[%emt 0:00:24]} Rh2 {[%emt 0:00:21]} 0-1